Cogmind - Beta 11 @@@ ROGUE MODE // 2022.04.01 @ 15:27:41 Player: Awoo-Bot Result: Self-destructed Performance ------------- Evolutions (2) 1000 Regions Visited (5) 1000 Robots Destroyed (97) 485 Value Destroyed (2464) 2464 Prototype IDs (0) 0 Alien Tech Used (0) 0 Bonus (28) 28 TOTAL SCORE: 4977 Bonus ------- High Alert Combat Kills 28 Cogmind --------- Core Integrity 244/550 Matter 63/300 Energy 290/290 System Corruption 0% Temperature Cool (-100) Movement Rolling (140) Ox4 Location -8/Materials Parts ------- > --- POWER (1) -------- Reinforced Deuterium Engine > --- PROPULSION (3) --- Armored Treads Wheel > --- UTILITY (4) ------ Cryofiber Web Large Storage Unit Graphene Brace > --- WEAPON (3) ------- Minigun Improved Light Cannon > --- INVENTORY (15) --- Improved Ion Engine Large Storage Unit Experimental Sensor Array Improved Signal Interpreter Heavy Assault Rifle Shotgun Assault Cannon Assault Cannon Rocket Launcher Datajack Mace Peak State ------------ > --- POWER ------------ Reinforced Deuterium Engine > --- PROPULSION ------- Armored Treads Wheel Wheel > --- UTILITY ---------- Large Storage Unit Core Shielding Hardened Medium Armor Plating Graphene Brace > --- WEAPON ----------- Minigun Improved Light Cannon Assault Cannon > --- INVENTORY -------- Improved Ion Engine Cryofiber Web Large Storage Unit Experimental Sensor Array Improved Signal Interpreter Heavy Assault Rifle Shotgun Assault Cannon Assault Cannon Rocket Launcher Datajack Mace [Rating: 32] Favorites ----------- Power Improved Ion Engine Engine Improved Ion Engine Propulsion Light Treads Treads Light Treads Wheel Wheel Utility Large Storage Unit Device Graphene Brace Storage Large Storage Unit Protection Core Shielding Weapon Heavy Assault Rifle Energy Cannon Beam Cannon Ballistic Gun Heavy Assault Rifle Ballistic Cannon Assault Cannon Launcher Rocket Launcher Impact Weapon Maul Build | -11 -10 -10 -9 -9 -8 ------- Run | Scr Mat Min Mat Min Mat Slots Evolved 4 | . . . 2 . 2 Power . | . . . . . . Propulsion 1 | . . . . . 1 Utility 2 | . . . 1 . 1 Weapon 1 | . . . 1 . . Parts Attached 68 | 8 10 8 24 3 15 Power 9 | 1 1 . 5 . 2 Engine 9 | 1 1 . 5 . 2 Core . | . . . . . . Reactor . | . . . . . . Propulsion 16 | 2 3 2 3 1 5 Treads 14 | 2 3 2 3 1 3 Leg . | . . . . . . Wheel 2 | . . . . . 2 Hover . | . . . . . . Flight . | . . . . . . Utility 14 | 2 3 . 5 . 4 Device 2 | . . . . . 2 Storage 4 | 2 2 . . . . Processor . | . . . . . . Hackware . | . . . . . . Protection 8 | . 1 . 5 . 2 Artifact . | . . . . . . Weapon 29 | 3 3 6 11 2 4 Energy Gun . | . . . . . . Energy Cannon 3 | . . 1 2 . . Ballistic Gun 16 | 3 3 3 6 . 1 Ballistic Cannon 4 | . . . 1 1 2 Launcher 5 | . . 2 1 1 1 Special Weapon . | . . . . . . Impact Weapon 1 | . . . 1 . . Slashing Weapon . | . . . . . . Piercing Weapon . | . . . . . . Special Melee Weapon . | . . . . . . Unidentified Prototypes . | . . . . . . Parts Lost 13 | . . 4 . . 9 Power . | . . . . . . Propulsion 6 | . . 2 . . 4 Utility 4 | . . . . . 4 Weapon 3 | . . 2 . . 1 Highest Loss Streak 4 | . . 4 . . 4 To Critical Strikes . | . . . . . . Average Slot Usage (%) 97 | . 94 99 99 100 90 Engine 12 | . 13 14 11 11 9 Treads 24 | . 28 27 22 22 16 Storage 13 | . 19 14 11 11 9 Protection 15 | . 3 14 22 22 21 Energy Cannon 1 | . . . 4 . . Ballistic Gun 23 | . 27 27 19 22 14 Ballistic Cannon 5 | . . . 8 10 11 Naked Turns . | . . . . . . Heaviest Build 94 | 19 94 31 46 46 57 Greatest Support 68 | 40 40 40 40 48 68 Greatest Overweight (x) 15 | . 2 . 1 1 15 Average Overweight (x) . | . . . . . 2 Largest Inventory Capacity 25 | 8 25 15 15 15 15 Average Capacity 13 | 7 10 15 15 15 15 Most Carried 15 | 4 14 15 15 15 15 Average Carried 12 | 2 8 11 13 14 12 Final Capacity 15 | 8 15 15 15 15 15 Final Carried 15 | 4 14 11 15 15 11 Class Distribution -------------------- 47% | Mutant 28% | Scavenger-Tank 22% | Tank Dominant Class ---------------- Mutant | -10/Materials Mutant | -10/Mines Tank | -9/Materials Scavenger-Tank | -9/Mines Tank | -8/Materials Resources | -11 -10 -10 -9 -9 -8 ----------- Run | Scr Mat Min Mat Min Mat Matter Collected 2288 | 298 286 315 954 161 274 Remotely . | . . . . . . Salvage Created 2868 | 51 375 208 1539 175 520 Parts 197 | 2 22 16 116 16 25 Haulers Intercepted 4 | . . . 4 . . Recyclers Shooed 2 | . . . 2 . . Parts Field Recycled . | . . . . . . Retrieved Matter . | . . . . . . Parts Self-Destructed . | . . . . . . Prevented . | . . . . . . Kills | -11 -10 -10 -9 -9 -8 ------- Run | Scr Mat Min Mat Min Mat Combat Hostiles Destroyed 68 | . 11 9 27 7 14 Guns 36 | . 11 4 16 1 4 Cannons 15 | . . 1 8 2 4 AOE 17 | . . 4 3 4 6 Classes Destroyed 17 | 1 3 4 4 2 3 Worker 3 | . . 1 2 . . Builder 7 | . . 1 6 . . Tunneler 2 | . . . 1 1 . Hauler 4 | . . . 4 . . Recycler 7 | 1 . 1 4 . 1 Mechanic 1 | . . . . 1 . Operator 1 | . . . 1 . . Watcher 5 | . 2 . 3 . . Swarmer 21 | . 5 6 7 3 . Grunt 30 | . 6 . 11 3 10 Brawler 1 | . . . . 1 . Duelist 1 | . . . . . 1 Sentry 10 | . . . 9 . 1 Demolisher 2 | . . 2 . . . Hunter 1 | . . . . . 1 Heavy 1 | . . . . . 1 Assembled 1 | . . 1 . . . Best Kill Streak 6 | 1 3 5 6 5 6 Combat Bots Only 6 | . 3 3 4 4 6 Max Kills in Single Turn 4 | 1 1 3 4 2 2 Gunslinging . | . . . . . . Exploded 3 | . . 3 2 2 2 Melee . | . . . . . . Uniques/NPCs Destroyed . | . . . . . . Combat | -11 -10 -10 -9 -9 -8 -------- Run | Scr Mat Min Mat Min Mat Damage Taken 3731 | . 335 485 926 74 1911 Core 482 | . 65 27 76 8 306 Absorbed by Shields . | . . . . . . Redirected to Shielding 50 | . . 5 15 2 28 Regen/Repaired (Parts) 83 | . 83 . . . . Core Remaining (%) 80 | 100 . 63 . 79 . Volleys Fired 199 | 3 44 24 77 9 42 Largest 3 | 2 2 2 3 3 3 Hottest 127 | 40 43 60 127 90 108 Shots Fired 448 | 6 87 33 213 21 88 Gun 287 | 6 87 20 120 12 42 Cannon 136 | . . 1 89 6 40 Launcher 25 | . . 12 4 3 6 Special . | . . . . . . Kinetic 392 | 6 87 20 179 18 82 Thermal 31 | . . 1 30 . . Explosive 25 | . . 12 4 3 6 Electromagnetic . | . . . . . . Robot Hit Streak 13 | 3 11 4 13 4 13 Robot Miss Streak 5 | 1 3 2 4 3 5 Penetration Max . | . . . . . . Secondary Targets 2 | . 2 . . . . Max Gunslinging Chain 1 | . 1 . . . . Shots Hit Robots 270 | 5 54 20 127 10 54 Core Hits 150 | 2 21 22 61 13 31 Critical Kills . | . . . . . . Critical Parts Destroyed 1 | . . . . . 1 Critical Strikes 5 | . . . 3 1 1 Destroy 1 | . . . . . 1 Blast 4 | . . . 3 1 . Melee Attacks . | . . . . . . Impact . | . . . . . . Slashing . | . . . . . . Piercing . | . . . . . . Sneak Attacks . | . . . . . . Combat Hostiles . | . . . . . . Follow-up Attacks . | . . . . . . Damage Inflicted 6111 | 61 701 440 2739 486 1684 Guns 2651 | 61 701 154 1172 114 449 Cannons 1812 | . . 17 1199 65 531 Explosions 1648 | . . 269 368 307 704 Melee . | . . . . . . Ramming . | . . . . . . Kinetic 4037 | 61 701 154 1962 179 980 Thermal 426 | . . 17 409 . . Explosive 1648 | . . 269 368 307 704 Electromagnetic . | . . . . . . Impact . | . . . . . . Slashing . | . . . . . . Piercing . | . . . . . . Highest Corruption . | . . . . . . Average Corruption . | . . . . . . Corruption Purged . | . . . . . . Corruption Blocked . | . . . . . . Overload Shots . | . . . . . . Overflow Damage 73 | . . 8 39 26 . Projectiles 60 | . . . 34 26 . Explosions 13 | . . 8 5 . . Melee . | . . . . . . Knockbacks 6 | . . . 2 . 4 Impact . | . . . . . . Kinetic 5 | . . . 2 . 3 Secondary 1 | . . . . . 1 Self-Inflicted Damage 200 | . . 69 94 . 37 Shots 5 | . . 3 1 . 1 Rammed . | . . . . . . Targets Rammed . | . . . . . . Kicked . | . . . . . . Crushed . | . . . . . . Highest Temperature 528 | 6 2 20 334 66 528 Average Temperature 107 | 6 2 15 67 24 207 Received Heat Transfer 975 | . 135 . 288 12 540 Effects 17 | . . . 4 . 13 Shutdowns 2 | . . . . . 2 Interference 11 | . . . 3 . 8 Matter Decay 2 | . . . 1 . 1 Damage (core) 2 | . . . . . 2 Siege Activations . | . . . . . . Robots Corrupted . | . . . . . . Combat Hostiles . | . . . . . . Parts Fried . | . . . . . . Impact Corruptions . | . . . . . . Robots Melted . | . . . . . . Combat Hostiles . | . . . . . . Parts Melted 1 | . . . 1 . . Heat Transferred 888 | . . 37 851 . . Parts Sabotaged . | . . . . . . Parts Stolen . | . . . . . . Parts Stripped . | . . . . . . Power Chain Reactions . | . . . . . . Missiles Intercepted . | . . . . . . Alert | -11 -10 -10 -9 -9 -8 ------- Run | Scr Mat Min Mat Min Mat Peak Influence 547 | 5 139 159 547 456 340 Initial 213 | . 3 . . 213 23 Average 168 | . 40 66 275 233 176 Maximum Alert Level 2 | . . . 2 2 1 Low Security (%) 62 | 100 100 100 26 46 61 Level 1 29 | . . . 57 41 38 Level 2 7 | . . . 15 11 . Level 3 . | . . . . . . Level 4 . | . . . . . . Level 5 . | . . . . . . High Security . | . . . . . . Max Security . | . . . . . . Squads Dispatched 3 | . 1 . . 1 1 Investigation . | . . . . . . Extermination . | . . . . . . Reinforcement 2 | . 1 . . . 1 Assault 1 | . . . . 1 . Garrison . | . . . . . . Intercept . | . . . . . . Searches Triggered . | . . . . . . Construction Impeded . | . . . . . . Haulers Reinforced . | . . . . . . Active Scanning Responses . | . . . . . . Cargo Convoy Interrupts . | . . . . . . Stealth | -11 -10 -10 -9 -9 -8 --------- Run | Scr Mat Min Mat Min Mat Distress Signals 6 | . 1 . 5 . . Communications Jammed . | . . . . . . Distress Signals . | . . . . . . Times Spotted 106 | . 28 10 44 11 13 Peak Tracking Total 6 | . 4 3 4 4 6 Tactical Retreats 7 | . . 1 4 1 1 Traps | -11 -10 -10 -9 -9 -8 ------- Run | Scr Mat Min Mat Min Mat Traps Triggered 1 | . 1 . . . . Indirectly . | . . . . . . Trap Hack Attempts . | . . . . . . Triggered . | . . . . . . Disarmed . | . . . . . . Reprogrammed . | . . . . . . Reused . | . . . . . . Traps Extracted . | . . . . . . Installed . | . . . . . . Triggered . | . . . . . . Machines | -11 -10 -10 -9 -9 -8 ---------- Run | Scr Mat Min Mat Min Mat Machines Disabled 8 | . . . 5 . 3 Max in Single Turn 2 | . . . 2 . 1 Machines Sabotaged . | . . . . . . Garrisons Compromised . | . . . . . . Overloaded Fab Kills . | . . . . . . Hacking | -11 -10 -10 -9 -9 -8 --------- Run | Scr Mat Min Mat Min Mat Machines Accessed 16 | . 7 . 8 1 . Terminals 14 | . 6 . 8 . . Fabricators . | . . . . . . Repair Stations 1 | . 1 . . . . Recycling Units . | . . . . . . Scanalyzers . | . . . . . . Garrison Access . | . . . . . . Total Hacks 37 | . 20 . 16 1 . Successful 19 | . 14 . 4 1 . Failed 17 | . 5 . 12 . . Catastrophic 5 | . . . 5 . . Database Lockouts 1 | . 1 . . . . Manual 33 | . 17 . 16 . . Terminals 32 | . 16 . 16 . . Fabricators . | . . . . . . Repair Stations 4 | . 4 . . . . Recycling Units . | . . . . . . Scanalyzers . | . . . . . . Garrison Access . | . . . . . . Terminal Hacks 7 | . 3 . 3 1 . Robot Analysis 1 | . 1 . . . . Open Door 1 | . . . . 1 . Branch Access Points 1 | . . . 1 . . Terminal Index 1 | . 1 . . . . Alert Level 1 | . . . 1 . . Unreport Threat 2 | . 1 . 1 . . Fabricator Hacks . | . . . . . . Repair Station Hacks 4 | . 4 . . . . Scan Component 2 | . 2 . . . . Repair 2 | . 2 . . . . Recycling Unit Hacks . | . . . . . . Scanalyzer . | . . . . . . Garrison Access Hacks . | . . . . . . Unauthorized Hacks 8 | . 7 . 1 . . Terminals 8 | . 7 . 1 . . Track 1 | . 1 . . . . Botnet 6 | . 5 . 1 . . Operators 1 | . 1 . . . . Fabricators . | . . . . . . Repair Stations . | . . . . . . Recycling Units . | . . . . . . Scanalyzers . | . . . . . . Garrison Access . | . . . . . . Data Cores Recovered 1 | . . . 1 . . Used . | . . . . . . Hacking Detections 10 | . 3 . 7 . . Full Trace Events . | . . . . . . Feedback Events . | . . . . . . Feedback Blocked . | . . . . . . Robot Schematics Acquired . | . . . . . . Robots Built . | . . . . . . Authchips . | . . . . . . Time . | . . . . . . Total Robot Build Rating . | . . . . . . Part Schematics Acquired . | . . . . . . Parts Built . | . . . . . . Authchips . | . . . . . . Time . | . . . . . . Total Part Build Rating . | . . . . . . Parts Repaired 2 | . 2 . . . . Time 52 | . 52 . . . . Parts Recycled . | . . . . . . Recycled Matter . | . . . . . . Retrieved Matter . | . . . . . . Retrieved Components . | . . . . . . Parts Scanalyzed . | . . . . . . Part Schematics Acquired . | . . . . . . Parts Damaged . | . . . . . . Bothacking | -11 -10 -10 -9 -9 -8 ------------ Run | Scr Mat Min Mat Min Mat Used RIF Installer . | . . . . . . Robots Hacked . | . . . . . . Non-combat . | . . . . . . Combat . | . . . . . . Robot Hacks Applied . | . . . . . . Relay Couplers Released . | . . . . . . Fabnet Peak Effective % . | . . . . . . Robots Rewired . | . . . . . . Allies Hacked . | . . . . . . Hacks Repelled . | . . . . . . Allies | -11 -10 -10 -9 -9 -8 -------- Run | Scr Mat Min Mat Min Mat Total Allies 1 | . . . . 1 . Largest Group 1 | . . . . 1 . Highest-Rated Group 31 | . . . . 31 . Highest-Rated Ally 31 | . . . . 31 . Total Orders . | . . . . . . Ally Attacks 5 | . . . . 5 . Total Damage 104 | . . . . 104 . Kills . | . . . . . . Allies Corrupted . | . . . . . . Allies Melted . | . . . . . . Intel | -11 -10 -10 -9 -9 -8 ------- Run | Scr Mat Min Mat Min Mat Robot Analysis Total 1 | . 1 . . . . Derelict Logs Recovered 2 | . . 1 . 1 . Drone Launches . | . . . . . . Drone Recoveries . | . . . . . . Exploration | -11 -10 -10 -9 -9 -8 ------------- Run | Scr Mat Min Mat Min Mat Turns Passed 8273 | 92 2084 1240 2851 1503 503 Spaces Moved 3592 | 48 951 679 1041 703 170 Core 10 | 7 . . . . 3 Treads 3509 | 41 951 679 1041 703 94 Legs . | . . . . . . Wheels 73 | . . . . . 73 Hover . | . . . . . . Flight . | . . . . . . Fastest Speed 50 | 50 160 160 160 160 110 Average Speed 192 | 143 162 160 239 202 180 Slowest Speed 800 | 160 320 160 240 240 800 Overloaded Moves . | . . . . . . Propulsion Burnouts . | . . . . . . Robots Hopped . | . . . . . . Cave-ins Triggered . | . . . . . . Exploration Rate (%) 67 | 5 98 99 88 99 17 Regions Visited 5 Branch Regions 2 Pre-discovered Areas . | . . . . . . Known Exits Taken 1 | . . . 1 . . Unknown Exits Taken 4 | 1 1 1 . 1 . Scrap Searched 3 | . . 1 . 2 . Spaces Dug . | . . . . . . Terrain Destroyed 197 | . . 57 61 38 41 Melee . | . . . . . . Projectile 18 | . . . 11 3 4 AOE 179 | . . 57 50 35 37 Terrain Rammed . | . . . . . . Walls Destroyed . | . . . . . . Machines Disabled . | . . . . . . Actions | -11 -10 -10 -9 -9 -8 --------- Run | Scr Mat Min Mat Min Mat Total 4561 | 61 1407 800 1234 765 294 Wait 634 | . 381 87 59 46 61 Move 3587 | 47 950 678 1040 702 170 Hop . | . . . . . . Pick Up 33 | 3 13 1 12 2 2 Fast Attach 20 | 7 6 . 1 . 6 Attach 19 | . . 6 6 . 7 Detach 3 | . . 2 1 . . Swap 29 | 1 4 2 17 3 2 Drop 37 | . 9 . 21 3 4 Fire 199 | 3 44 24 77 9 42 Melee . | . . . . . . Ram . | . . . . . . Kick . | . . . . . . Crush . | . . . . . . Escape Stasis . | . . . . . . Rewire . | . . . . . . Trap . | . . . . . . Miscellaneous . | . . . . . . Route ------- -11/Scrapyard -10/Materials (discovered 5 exits: *Mat x3 / [*Min x2]) -10/Mines (discovered 3 exits: *Mat x2 / [*Exi]) -9/Materials (discovered 3 exits: [*Mat x2] / *Min) -9/Mines (discovered 3 exits: [*Mat x2] / [*Zio]) -8/Materials (discovered 1 exit: Fac) History --------- Turn | Location | Event 11 | -11/Scrapyard | Discovered new exit (range 14) 93 | -11/Scrapyard | Entered Materials 311 | -10/Materials | Build established: Mutant 1087 | -10/Materials | Discovered new exit (range 11) 1175 | -10/Materials | Discovered new exit (range 10) 1505 | -10/Materials | Discovered new exit (range 7) 1800 | -10/Materials | Repaired Ion Engine 1828 | -10/Materials | Repaired Assault Rifle 1834 | -10/Materials | Discovered new exit (range 7) 2031 | -10/Materials | Discovered new exit (range 15) 2058 | -10/Materials | Central database locked down 2177 | -10/Materials | Entered Mines 2364 | -10/Mines | Assembled infested the area 2671 | -10/Mines | Lost 4 parts (2n2w) 3031 | -10/Mines | Discovered new exit (range 14) 3156 | -10/Mines | Found a hidden stash of uninstalled traps 3162 | -10/Mines | Learned Materials garrison access intel 3162 | -10/Mines | Discovered new exit (range 12) 3199 | -10/Mines | Deemed a non-threat by the Exiles lab entrance 3199 | -10/Mines | Discovered new exit (range 5) 3271 | -10/Mines | Received a Rocket Launcher from a helpful Derelict 3417 | -10/Mines | Entered Materials 3417 | -9/Materials | Evolved 2 slots: Utility x1, Weapon x1 3718 | -9/Materials | Build established: Tank 4147 | -9/Materials | Discovered new exit (range 14) 4875 | -9/Materials | Discovered new exit (range 16) 5123 | -9/Materials | Identified exit to Mines 5258 | -9/Materials | Build established: Mutant 5686 | -9/Materials | Discovered new exit (range 15) 5823 | -9/Materials | Build established: Scavenger-Tank 6268 | -9/Materials | Entered Mines 6269 | -9/Mines | Met a Derelict testing a Signal Generator 6330 | -9/Mines | A Derelict revealed a hidden shortcut to a safe place 7094 | -9/Mines | Found a damaged Exp. Sensor Array with a note attached 7099 | -9/Mines | Found Prototype Device 7136 | -9/Mines | Discovered new exit (range 7) 7202 | -9/Mines | Met a Derelict who couldn't figure out how to use a Trap Extractor 7357 | -9/Mines | Discovered new exit (range 13) 7682 | -9/Mines | Learned location of 1 exit from Materials 7771 | -9/Mines | Entered Materials 7771 | -8/Materials | Evolved 2 slots: Propulsion x1, Utility x1 7772 | -8/Materials | Identified exit to Factory 7773 | -8/Materials | Loaded intel: 1 garrison access location 8170 | -8/Materials | Lost 3 parts (2n1u) 8232 | -8/Materials | Core integrity fell below 50% 8248 | -8/Materials | Lost 4 parts (1n2u1w) 8274 | -8/Materials | Self-destructed Last Messages --------------- 08229_ Overheating: Core damaged (-77). 08229_ K-01 Serf collects debris. 08230_ Power failure averted by Cryofiber Web. 08230_ Overheating: System interference. 08230_ Minigun temporarily disabled. 08231_ G-47 Trooper destroyed. 08232_ Power failure averted by Cryofiber Web. 08232_ Overheating: Core damaged (-60). 08232_ K-01 Serf collects debris. 08232_ U-05 Engineer builds a Wall. 08235_ K-01 Serf collects debris. 08236_ Power failure averted by Cryofiber Web. 08237_ System interference averted by Cryofiber Web. 08237_ Overheating: System interference. 08237_ Imp. Light Cannon temporarily disabled. 08239_ K-01 Serf collects debris. 08241_ U-05 Engineer builds a Wall. 08247_ K-01 Serf collects debris. 08250_ U-05 Engineer builds a Wall. 08251_ K-01 Serf collects debris. Map ----- +----------------------------------------------------+ | ??????????????????????????????????????????? | | ??????????????????????????????????????????? | | ??????????????????????????????????????????? | | ??????????????????????????????????????????? | | ??????????????????????????????????????????? | | ??????????????????????????????????????????? | | ??????????????????????????????????????????? | | ??????????????????????????????????????????? | | ??????????????????????????????????????????? | | ??????????????????????????????????????????? | | ???????????????????????? ???????????????? | | ???????????????????????? ???????????????? | | ???????????????????????? ???????????????? | | ???????????????????????# #??????????????? | | ???????????????????????# #??????????????? | | ???????????????????????#k #??????????????? | | ???????????????????????# #??????????????? | | ???????????????????????# %+??????????????? | | ???????????????????????#=k%#??????????????? | | ??????????????????????##%= ##?????????????? | | ?????????????????#+???# [% #?????????????? | | ?????????????????? ###* #?????????????? | | ???????????????????? t%%= +?????????????? | | ?????????????????????##%! #?????????????? | | ??????????????????????#== ??????????????? | | ???????????????????????##@#???????????????? | | ???????????????????????## #???????????????? | | ????????????????????????# #???????????????? | | ?????????????????? ?????# #???????????????? | | ????????????????# ????# ###?????????????? | | ????????????????# ????# # #?????????????? | | ????????????????# ????# ;#??????????????? | | ????????????????# #####k%####???????????? | | ?????????????"??# # =*! !=#???????????? | | ???????????""" ?# # """ """ #???????????? | | ???????????? # # """"""" #???????????? | | ?????????#?""" # # """"""" #???????????? | | ?????????# """ / + """"""" #???????????? | | ?????????# """ # # """"""" #???????????? | | ?????????? # # #???????????? | | ?????????# """ # # #???????????? | | ?????????# """ %=# #######???????????? | | ?????????# """ # #??????????????? | | ?????????# #??????????????? | | ?????????##### #??????????????? | | ?????????# % # #??????????????? | | ?????????# ! [#??????????????? | | ?????????# =#] #??????????????? | | ?????????# " #####??????????????? | | ?????????# * "" # #??????????????????? | +----------------------------------------------------+ Best States ------------- Heat Dissipation 31 Energy Generation 16 Energy Capacity 290 Matter Stores 300 Matter Capacity 300 Sight Range 16 Terrain Scan Density 10 Base Temperature (-) 100 Armor Coverage 450 Core Shielding 20 Evasion (%) 40 Recoil Reduction 3 Item Schematics ----------------- None Robot Schematics ------------------ None Fabricated ------------ Nothing Alien Tech Used ----------------- None Achievements -------------- None Challenges ------------ None Game ------ Seed DimensionalWaveFilter Manual? 0 Play Time 00:41:40 Cumulative 55.3 hours Start 2022.04.01 @ 14:31:48 End 2022.04.01 @ 15:27:41 Sessions 1 Manual Loads 0 Difficulty Rogue Special Mode None Game No. 91 Rogue 63 Adventurer 28 Explorer 0 Win Type - Total 0 Types 0/0/0/0/0/0/0/0/0 Lore% 23 Gallery% 28 Achievement% 30 Wizard Run 0 Options --------- ASCII 0 Keyboard 0 Movement Mouse Keybinds 0 Fullscreen 1 Font 24/Terminus Map View 84x54 Tactical HUD 1 Map Filters NONE Filters NONE Steam 1 RUN: 53e55d4d-f25d-4579-9a8c-c18b0d205653